bitfinex/quotes_ETHUSD_20251008
["timestamp","ask_amount","ask_price","bid_price","bid_amount"]
[1759953040425,0.6336,4518.0,4517.6,0.001]
[1759953040625,0.4382,4517.7,4517.6,0.001]
[1759953041442,3.28531572,4517.7,4517.6,0.001]
[1759953041836,5.20531572,4517.7,4517.6,0.001]
[1759953042034,1.92,4517.7,4517.6,0.001]
[1759953042449,2.5536,4517.9,4517.6,0.001]
[1759953042655,0.52051721,4517.8,4517.6,0.001]
[1759953042864,2.88061721,4517.8,4517.6,0.001]
[1759953043070,0.4401,4517.7,4517.6,0.001]
[1759953045042,2.65361572,4517.7,4517.6,0.001]
[1759953045242,0.4401,4517.7,4517.6,0.001]
[1759953045539,0.84256935,4517.7,4517.6,0.001]
[1759953045745,0.8506,4517.9,4517.6,0.001]
[1759953045945,0.4401,4517.7,4517.6,0.001]
[1759953046478,0.8506,4517.9,4517.6,0.001]
[1759953046870,1.2907,4517.9,4517.6,0.001]
[1759953047184,0.4421,4518.2,4517.6,0.001]
[1759953047486,2.5536,4518.1,4517.6,0.001]
[1759953047669,3.59017077,4518.0,4517.6,0.001]
[1759953047849,4.03027077,4518.0,4517.6,0.001]
[1759953048184,1.92,4517.8,4517.6,0.001]
[1759953048357,2.3601,4517.9,4517.6,0.001]
[1759953048557,1.81690067,4518.0,4517.6,0.001]
[1759953048754,1.28428289,4517.9,4517.6,0.001]
[1759953048958,0.4401,4517.8,4517.6,0.001]
[1759953049350,0.4401,4517.7,4517.6,0.001]
[1759953049573,2.65361572,4517.7,4517.6,0.001]
[1759953050090,0.4401,4517.7,4517.6,0.001]
[1759953051563,1.28428289,4517.9,4517.6,0.001]
[1759953051881,3.20428289,4517.9,4517.6,0.001]
[1759953052081,1.72438289,4517.9,4517.6,0.001]
[1759953052284,4.51522598,4518.3,4517.6,0.001]
[1759953052285,6.26,4518.2,4517.6,0.001]
[1759953052494,1.922,4518.2,4517.6,0.001]
[1759953053301,0.217,4517.7,4517.6,0.001]
[1759953053818,4.80201572,4517.7,4517.6,0.001]
[1759953053966,2.88201572,4517.7,4517.6,0.001]
[1759953054388,0.96104022,4517.7,4517.6,0.001]
[1759953056182,0.50954022,4517.7,4517.6,0.001]
[1759953056695,1.92,4518.0,4517.6,0.001]
[1759953057159,0.4515,4517.9,4517.6,0.001]
[1759953057824,0.4515,4517.8,4517.6,0.001]
[1759953060230,0.002,4518.2,4517.6,0.001]
[1759953060387,0.1104,4517.9,4517.7,2.21351572]
[1759953060589,0.002,4518.2,4517.8,0.69258157]
[1759953060837,0.002,4518.2,4518.1,2.21331975]
[1759953061221,0.002,4518.2,4518.1,2.64161975]
[1759953061729,0.002,4518.2,4518.1,2.21331975]
[1759953062494,0.002,4518.2,4518.1,8.89961975]
[1759953062692,0.002,4518.2,4518.1,10.04838676]
[1759953062895,0.002,4518.2,4518.1,12.35038676]
[1759953063629,0.002,4518.2,4518.1,2.64700373]
[1759953063807,0.002,4518.2,4518.1,2.21331975]
[1759953068204,0.002,4518.2,4518.1,2.66375294]
[1759953068402,0.002,4518.2,4518.1,2.77415294]
[1759953068619,0.002,4518.2,4518.1,3.2262925]
[1759953068851,0.002,4518.2,4518.1,4.39605862]
[1759953069742,0.002,4518.2,4518.1,4.37392543]
[1759953069942,0.002,4518.2,4518.1,3.92178587]
[1759953070109,0.002,4518.2,4518.1,2.32371975]
[1759953070321,0.002,4518.2,4518.1,2.75201975]
[1759953071498,0.002,4518.2,4518.1,3.19074914]
[1759953071707,0.002,4518.2,4518.1,2.75201975]
[1759953071907,0.002,4518.2,4518.1,3.8743586]
[1759953072930,0.002,4518.2,4518.1,3.8753586]
[1759953075003,0.002,4518.2,4518.1,10.1323586]
[1759953079235,0.002,4518.2,4518.1,9.7040586]
[1759953079436,0.002,4518.2,4518.1,8.47131975]
[1759953080238,0.002,4518.2,4518.1,8.89961975]
[1759953080441,0.002,4518.2,4518.1,9.45113907]
[1759953081829,0.002,4518.2,4518.1,11.75113907]
[1759953082504,0.002,4518.2,4518.1,2.21431975]
[1759953082716,0.002,4518.2,4518.1,8.47031975]
[1759953083823,0.002,4518.2,4518.1,6.257]
[1759953084224,0.4495,4518.2,4518.1,6.257]
[1759953084429,0.002,4518.2,4518.1,0.001]
[1759953086345,0.4495,4518.2,4518.1,0.001]
[1759953088059,0.4495,4518.2,4518.1,2.21431975]
[1759953088224,0.002,4518.2,4518.1,2.21431975]
[1759953089118,0.002,4518.2,4518.1,2.64261975]
[1759953089319,0.002,4518.2,4518.1,3.59702245]
[1759953089550,0.002,4518.2,4518.1,6.257]
[1759953089855,0.002,4518.2,4518.1,8.47031975]
[1759953090350,0.002,4518.2,4518.1,8.89861975]
[1759953091387,0.002,4518.2,4518.1,8.47031975]
[1759953091522,0.002,4518.2,4518.1,6.257]
[1759953091850,0.002,4518.2,4518.1,8.89861975]
[1759953092420,0.002,4518.2,4518.1,9.34018165]
[1759953092937,0.002,4518.2,4518.1,8.89861975]
[1759953098374,0.002,4518.2,4518.1,8.47031975]
[1759953098579,0.002,4518.2,4518.1,8.89861975]
[1759953101888,0.002,4518.2,4518.1,8.47031975]
[1759953102391,0.002,4518.2,4518.1,8.89861975]
[1759953104136,1e-08,4518.4,4518.3,2.21322178]
[1759953104268,1e-08,4518.4,4518.3,8.46922178]
[1759953104628,1e-08,4518.4,4518.3,8.89752178]
[1759953105902,0.01,4519.9,4518.4,4.1331728]
[1759953106107,0.01,4519.9,4518.8,2.21297689]
[1759953106309,0.01,4519.9,4518.8,19.97497689]
[1759953106553,0.01,4519.9,4518.8,20.40327689]
[1759953107131,1e-08,4518.9,4518.8,20.40327689]
[1759953111737,1e-08,4518.9,4518.8,2.64127689]
[1759953111940,1e-08,4518.9,4518.8,20.40227689]
[1759953113241,1e-08,4518.9,4518.8,20.51267689]
[1759953113941,1e-08,4518.9,4518.8,2.32337689]
[1759953114152,1e-08,4518.9,4518.8,11.30667689]
[1759953115554,1e-08,4518.9,4518.8,9.00567689]
[1759953115756,1e-08,4518.9,4518.4,2.21313917]
[1759953115757,0.11040001,4518.9,4518.4,2.21313917]
[1759953115925,0.55000001,4518.9,4518.5,6.254]
[1759953116121,0.11040001,4518.9,4518.5,6.254]
[1759953116352,0.4396,4518.8,4518.5,6.254]
[1759953116621,1e-08,4518.9,4518.5,6.254]
[1759953116820,0.4396,4518.7,4518.5,6.254]
[1759953117238,0.1104,4518.5,4518.3,2.21321852]
[1759953117524,0.1104,4518.5,4518.4,6.254]
[1759953117726,0.1104,4518.5,4518.3,2.21321852]
[1759953118024,0.4396,4518.4,4518.1,0.001]
[1759953118251,0.4396,4518.4,4518.2,5.781]
[1759953118425,0.1104,4518.2,4518.1,0.001]
[1759953118959,4.68327077,4518.2,4518.1,0.001]
[1759953119164,5.15159785,4518.2,4518.1,0.001]
[1759953119523,2.93832708,4518.2,4518.1,0.001]
[1759953120361,2.49872708,4518.2,4518.1,0.001]
[1759953120584,2.0304,4518.2,4518.1,0.001]
[1759953121219,0.1104,4518.2,4518.1,2.21431975]
[1759953121535,0.1104,4518.2,4518.1,0.001]
[1759953121864,0.1104,4518.2,4518.1,2.21431975]
[1759953122447,0.1104,4518.2,4518.1,0.001]
[1759953122854,0.55,4518.2,4518.1,0.001]
[1759953123377,5.59319376,4518.2,4518.1,0.001]
[1759953128566,7.89419376,4518.2,4518.1,0.001]
[1759953129639,5.59319376,4518.2,4518.1,0.001]
[1759953129835,14.15119376,4518.2,4518.1,0.001]
[1759953130058,14.23981569,4518.2,4518.1,0.001]
[1759953130869,14.15119376,4518.2,4518.1,0.001]
[1759953131372,5.59319376,4518.2,4518.1,0.001]
[1759953131537,14.15119376,4518.2,4518.1,0.001]
[1759953132366,11.85019376,4518.2,4518.1,0.001]
[1759953132568,14.15219376,4518.2,4518.1,0.001]
[1759953134670,5.59319376,4518.2,4518.1,0.001]
[1759953134973,14.15319376,4518.2,4518.1,0.001]
[1759953136453,14.24181569,4518.2,4518.1,0.001]
[1759953138240,11.73979376,4518.2,4518.1,0.001]
[1759953138445,14.04179376,4518.2,4518.1,0.001]
[1759953139241,11.73979376,4518.2,4518.1,0.001]
[1759953139441,5.48279376,4518.2,4518.1,0.001]
[1759953139641,14.04179376,4518.2,4518.1,0.001]
[1759953141046,14.13041648,4518.2,4518.1,0.001]
[1759953144389,14.3364555,4518.2,4518.1,0.001]
[1759953144799,5.7774555,4518.2,4518.1,0.001]
[1759953144999,14.24783278,4518.2,4518.1,0.001]
[1759953145360,14.723313,4518.2,4518.1,0.001]
[1759953146857,6.164313,4518.2,4518.1,0.001]
[1759953147263,2.56563902,4518.2,4518.1,0.001]
[1759953147494,0.4759529,4518.7,4518.1,0.001]
[1759953147819,2.68857564,4518.9,4518.2,0.4283]
[1759953147820,0.00200001,4518.9,4518.2,0.4283]
[1759953148100,0.00200001,4518.9,4518.1,0.001]
[1759953148256,0.00200001,4518.9,4518.2,2.21327077]
[1759953148461,0.00200001,4518.9,4518.4,2.2131728]
[1759953148682,2.03600001,4518.9,4518.4,2.21312926]
[1759953149495,0.1104,4518.4,4518.3,2.43464886]
[1759953149791,0.584,4518.4,4518.1,0.001]
[1759953149991,0.4736,4518.4,4518.1,0.001]
[1759953150361,3.845,4518.6,4518.1,0.001]
[1759953150793,0.4736,4518.5,4518.1,0.001]
[1759953151824,0.4736,4518.4,4518.1,0.001]
[1759953151999,0.00200001,4518.9,4518.1,0.001]
[1759953152201,0.43100001,4518.9,4518.1,0.001]
[1759953152532,2.3936,4518.8,4518.1,2.21429795]
[1759953152734,2.3936,4518.8,4518.1,0.001]
[1759953152904,2.3936,4518.8,4518.1,2.21431916]
[1759953153594,0.4736,4518.8,4518.2,2.21327077]
[1759953154090,2.21351572,4517.7,4517.6,0.001]
[1759953154306,11.40611572,4517.7,4517.6,0.001]
[1759953154529,11.87971572,4517.7,4517.6,0.001]
[1759953156532,3.32071572,4517.7,4517.6,0.001]
[1759953156734,1.87400606,4517.7,4517.6,0.001]
[1759953156949,0.6336,4517.7,4517.6,0.001]
[1759953157223,1.1072,4517.7,4517.6,0.001]
[1759953157521,5.24071572,4517.7,4517.6,0.001]
[1759953161535,11.49771572,4517.7,4517.6,0.001]
[1759953161712,6.64208219,4517.7,4517.6,0.001]
[1759953161917,1.92,4517.7,4517.6,0.001]
[1759953162300,2.3872,4517.7,4517.6,0.001]
[1759953162718,1.92,4517.7,4517.6,0.001]
[1759953164006,2.3872,4517.7,4517.6,0.001]
[1759953164828,1.92,4517.7,4517.6,0.001]
[1759953167240,2.3872,4517.7,4517.6,0.001]
[1759953168949,1.92,4517.7,4517.6,0.001]
[1759953170458,2.78028946,4518.8,4517.6,0.001]
[1759953170650,0.6336,4518.6,4517.6,2.21456213]
[1759953170961,0.6336,4518.4,4517.8,2.21342089]
[1759953171459,0.1104,4518.0,4517.9,2.2355519]
[1759953171771,0.1104,4518.0,4517.9,2.6638519]
[1759953171931,0.00200001,4518.9,4517.9,2.6638519]
[1759953171932,0.00200001,4518.9,4518.3,2.21317892]
[1759953172126,0.00200001,4518.9,4518.4,2.2131706]
[1759953172941,0.002,4518.7,4518.0,0.02213368]
[1759953173145,0.1104,4518.2,4518.1,2.21331975]
[1759953173662,0.1104,4518.2,4518.1,2.64161975]
[1759953175049,0.1104,4518.2,4517.9,3.10719908]
[1759953175430,0.1104,4518.2,4518.0,2.21336527]
[1759953175762,0.1104,4518.2,4517.8,6.257]
[1759953176064,0.1124,4518.7,4518.6,2.21307484]
[1759953176266,0.1124,4518.7,4518.6,8.47007484]
[1759953176943,0.1124,4518.7,4518.6,6.257]
[1759953177545,0.1124,4518.7,4518.6,8.47007484]
[1759953180465,0.1124,4518.7,4518.6,11.75828446]
[1759953180650,0.002,4518.7,4518.6,11.75828446]
[1759953181430,1e-08,4518.9,4518.8,2.21297689]
[1759953181678,1e-08,4518.9,4518.8,2.23510665]
[1759953181851,1e-08,4518.9,4518.8,2.66340665]
[1759953182057,1e-08,4518.9,4518.8,3.51940665]
[1759953183787,1e-08,4518.9,4518.8,3.49727689]
[1759953184785,1e-08,4518.9,4518.8,0.856]
[1759953184986,1e-08,4518.9,4518.8,8.47097689]
[1759953185684,1e-08,4518.9,4518.8,8.89927689]
[1759953185848,1e-08,4518.9,4518.8,8.47097689]
[1759953186852,1e-08,4518.9,4518.8,6.258]
[1759953187462,0.47450001,4518.9,4518.8,6.258]
[1759953188087,0.47450001,4518.9,4518.5,2.301]
[1759953188262,2.21293933,4518.9,4518.5,8.561]
[1759953188449,0.4745,4518.8,4518.5,8.561]
[1759953188877,0.4745,4518.7,4518.5,8.561]
[1759953189177,0.4745,4518.6,4518.5,8.561]
[1759953189385,0.74324355,4518.6,4517.8,2.301]
[1759953189713,2.3945,4518.5,4517.9,6.26]
[1759953189908,2.6876858,4518.4,4517.9,6.26]
[1759953190091,0.4745,4518.3,4517.9,6.26]
[1759953190612,2.68778961,4518.2,4517.9,6.26]
[1759953190804,2.21336874,4518.0,4517.1,2.22477172]
[1759953191005,2.21336874,4518.0,4517.6,6.264]
[1759953191202,0.4745,4517.9,4517.6,6.264]
[1759953191583,2.21351572,4517.7,4517.6,0.001]
[1759953191783,0.4745,4517.8,4517.6,0.001]
[1759953191784,2.6879751,4517.8,4517.6,0.001]
[1759953192104,5.24161572,4517.7,4517.6,0.001]
[1759953194920,11.50461572,4517.7,4517.6,0.001]
[1759953195116,14.01145674,4517.7,4517.6,0.001]
[1759953196081,14.4855307,4517.7,4517.6,0.001]
[1759953196278,14.01145674,4517.7,4517.6,0.001]
[1759953196478,15.71273116,4517.7,4517.6,0.001]
[1759953197633,0.6336,4516.7,4516.6,0.001]
[1759953197805,11.0316058,4516.7,4516.6,0.001]
[1759953198005,11.5061058,4516.7,4516.6,0.001]
[1759953201106,2.3945,4516.7,4516.6,0.001]
[1759953201301,5.2421058,4516.7,4516.6,0.001]
[1759953201736,6.36970397,4516.7,4516.6,0.001]
[1759953203627,14.93570397,4516.7,4516.6,0.001]
[1759953208161,6.36970397,4516.7,4516.6,0.001]
[1759953208460,14.93470397,4516.7,4516.6,0.001]
[1759953212160,12.63270397,4516.7,4516.6,0.001]
[1759953212360,14.93570397,4516.7,4516.6,0.001]
[1759953216360,15.1411855,4516.7,4516.6,0.001]
[1759953217353,15.61503402,4516.7,4516.6,0.001]
[1759953217660,7.04903402,4516.7,4516.6,0.001]
[1759953217861,15.61403402,4516.7,4516.6,0.001]
[1759953218365,7.04903402,4516.7,4516.6,0.001]
[1759953218531,13.31003402,4516.7,4516.6,0.001]
[1759953218732,15.61303402,4516.7,4516.6,0.001]
[1759953220366,16.20817135,4516.7,4516.6,0.001]
[1759953220748,7.64417135,4516.7,4516.6,0.001]
[1759953221047,16.20817135,4516.7,4516.6,0.001]
[1759953221369,15.61303402,4516.7,4516.6,0.001]
[1759953221753,7.04903402,4516.7,4516.6,0.001]
[1759953221960,15.61420163,4516.7,4516.6,0.001]
[1759953222360,16.20928007,4516.7,4516.6,0.001]
[1759953223240,13.31120163,4516.7,4516.6,0.001]
[1759953223459,15.61420163,4516.7,4516.6,0.001]
[1759953224139,13.31120163,4516.7,4516.6,0.001]
[1759953224380,5.92260346,4516.7,4516.6,0.001]
[1759953224543,12.18360346,4516.7,4516.6,0.001]
[1759953224866,10.26360346,4516.7,4516.6,0.001]
[1759953225169,12.18360346,4516.7,4516.6,0.001]
[1759953225349,10.26360346,4516.7,4516.6,0.001]
[1759953225773,12.18360346,4516.7,4516.6,0.001]
[1759953226778,12.18460346,4516.7,4516.6,0.001]
[1759953227364,13.68408059,4516.7,4516.6,0.001]
[1759953229456,14.27941543,4516.7,4516.6,0.001]
[1759953229660,16.58241543,4516.7,4516.6,0.001]
[1759953230057,15.98608059,4516.7,4516.6,0.001]
[1759953232079,7.42208059,4516.7,4516.6,0.001]
[1759953232275,14.27990896,4516.7,4516.6,0.001]
[1759953234582,13.68308059,4516.7,4516.6,0.001]
[1759953235214,5.20807479,4516.7,4516.6,0.001]
[1759953235418,12.78314002,4516.7,4516.6,0.001]
[1759953236117,12.18684673,4516.7,4516.6,0.001]
[1759953237118,9.32834093,4516.7,4516.6,0.001]
[1759953237287,11.54234673,4516.7,4516.6,0.001]
[1759953238583,12.17594673,4516.7,4516.6,0.001]
[1759953238775,13.67462108,4516.7,4516.6,0.001]
[1759953239089,14.27150168,4516.7,4516.6,0.001]
[1759953239776,14.4686077,4516.7,4516.6,0.001]
[1759953240207,13.67462108,4516.7,4516.6,0.001]
[1759953240680,13.46738463,4516.7,4516.6,0.001]
[1759953241009,7.41467185,4516.7,4516.6,0.001]
[1759953241184,12.1759975,4516.7,4516.6,0.001]
[1759953241582,3.6653529,4516.7,4516.6,0.001]
[1759953241799,7.7533917,4516.7,4516.6,0.001]
[1759953242004,9.9673975,4516.7,4516.6,0.001]
[1759953242438,7.7533917,4516.7,4516.6,0.001]
[1759953242623,9.9673975,4516.7,4516.6,0.001]
[1759953246738,0.002,4517.1,4516.6,0.001]
[1759953246942,0.002,4517.1,4516.7,2.2140058]
[1759953247238,0.002,4517.1,4517.0,2.21385875]
[1759953248434,0.002,4517.1,4516.9,2.21390189]
[1759953248648,0.002,4517.1,4516.8,0.22150058]
[1759953248857,0.002,4517.1,4516.6,0.001]
[1759953249057,0.1104,4516.8,4516.6,0.001]
[1759953250026,0.4636,4516.7,4516.6,0.001]
[1759953250635,3.3112058,4516.7,4516.6,0.001]
[1759953251170,1.0972,4516.7,4516.6,0.001]
[1759953253058,0.4636,4516.7,4516.6,0.001]
[1759953253363,6.3704,4516.8,4516.6,0.001]
[1759953253570,0.4636,4516.7,4516.6,0.001]
[1759953261079,0.1104,4516.8,4516.6,0.001]
[1759953261279,0.1104,4516.8,4516.7,2.2140058]
[1759953262988,0.1104,4516.8,4516.6,2.2150519]
[1759953263187,0.1104,4516.8,4516.6,0.001]
[1759953263384,0.4636,4516.7,4516.6,0.001]
[1759953263680,0.1104,4516.8,4516.6,0.001]
[1759953264074,0.1104,4516.8,4516.6,2.21503916]
[1759953264460,0.1104,4516.8,4516.6,0.001]
[1759953264791,0.5432,4516.8,4516.6,0.001]
[1759953265311,0.4328,4516.7,4516.6,0.001]
[1759953265983,2.6468058,4516.7,4516.6,0.001]
[1759953266185,3.14391396,4516.7,4516.6,0.001]
[1759953266389,2.6468058,4516.7,4516.6,0.001]
[1759953267565,0.4328,4516.7,4516.6,0.001]
[1759953270104,2.6468058,4516.7,4516.6,0.001]
[1759953270265,0.4328,4516.7,4516.6,0.001]
[1759953270460,2.6468058,4516.7,4516.6,0.001]
[1759953270661,3.77751825,4516.7,4516.6,0.001]
[1759953273066,6.38212198,4516.7,4516.6,0.001]
[1759953274499,12.64112198,4516.7,4516.6,0.001]
[1759953276216,12.64102509,4516.7,4516.6,0.001]
[1759953277905,15.54098809,4516.7,4516.6,0.001]
[1759953278213,14.94502509,4516.7,4516.6,0.001]
[1759953279290,14.73792435,4516.7,4516.6,0.001]
[1759953280191,6.38187117,4516.7,4516.6,0.001]
[1759953280499,12.00827117,4516.7,4516.6,0.001]
[1759953280699,12.64187117,4516.7,4516.6,0.001]
[1759953280868,12.43492435,4516.7,4516.6,0.001]
[1759953281070,11.80132435,4516.7,4516.6,0.001]
[1759953281275,12.43492435,4516.7,4516.6,0.001]
[1759953281672,10.51492435,4516.7,4516.6,0.001]
[1759953282273,12.43492435,4516.7,4516.6,0.001]
[1759953283599,12.64179269,4516.7,4516.6,0.001]
[1759953285920,10.72179269,4516.7,4516.6,0.001]
[1759953286426,10.72379269,4516.7,4516.6,0.001]
[1759953286611,10.24538659,4516.7,4516.6,0.001]
[1759953286945,2.21389734,4517.0,4516.6,0.001]
[1759953287119,5.175,4516.9,4516.6,0.001]
[1759953287323,4.739,4516.9,4516.6,0.001]
[1759953287515,0.436,4516.8,4516.6,0.001]
[1759953287719,2.64995833,4516.8,4516.6,0.001]
[1759953288094,0.436,4516.7,4516.6,0.001]
[1759953289829,0.6336,4516.8,4516.6,0.001]
[1759953290003,6.8946,4516.8,4516.6,0.001]
[1759953290331,0.002,4517.1,4516.6,0.001]
[1759953290745,0.002,4517.1,4516.7,0.26434527]
[1759953290915,0.002,4517.1,4516.8,2.21395667]
[1759953291424,0.1104,4516.8,4516.7,2.47834514]
[1759953291610,0.002,4517.1,4517.0,2.21385875]
[1759953291931,0.002,4517.1,4517.0,4.15599733]
[1759953292131,0.002,4517.1,4517.0,5.30656168]
[1759953292429,0.002,4517.1,4517.0,5.7127231]
[1759953295935,0.002,4517.1,4517.0,5.2844231]
[1759953297938,0.002,4517.1,4517.0,11.5454231]
[1759953300451,0.002,4517.1,4517.0,11.9737231]
[1759953303323,0.002,4517.1,4517.0,10.39485875]
[1759953303519,0.1124,4517.1,4517.0,6.261]
[1759953303725,0.5488,4517.1,4517.0,6.261]
[1759953305046,0.5488,4517.1,4516.7,2.302]
[1759953305246,0.4384,4517.1,4516.7,2.302]
[1759953305451,0.002,4517.1,4516.7,2.302]
[1759953305649,0.002,4517.1,4516.8,0.02213956]
[1759953305848,0.1104,4516.9,4516.7,3.37960211]
[1759953306049,0.1104,4516.9,4516.8,6.261]
[1759953307033,0.5468,4516.9,4516.8,6.261]
[1759953307455,0.1104,4516.9,4516.8,6.261]
[1759953307652,0.1104,4516.9,4516.8,8.47495678]
[1759953307966,0.1104,4516.9,4516.8,9.54395699]
[1759953308166,0.002,4517.1,4517.0,2.21385875]
[1759953309056,0.002,4517.1,4516.8,9.54395699]
[1759953309057,0.1104,4517.0,4516.6,0.001]
[1759953309257,0.4364,4516.9,4516.6,0.001]
[1759953309770,0.002,4517.1,4516.6,2.21504427]
[1759953309976,2.8476058,4516.7,4516.6,0.001]
[1759953310133,9.8120058,4516.7,4516.6,0.001]
[1759953310534,1.07,4516.7,4516.6,0.001]
[1759953310771,3.2840058,4516.7,4516.6,0.001]
[1759953311876,3.49048291,4516.7,4516.6,0.001]
[1759953312168,4.91742301,4516.7,4516.6,0.001]
[1759953312369,4.7109459,4516.7,4516.6,0.001]
[1759953313552,4.91737328,4516.7,4516.6,0.001]
[1759953314979,6.83737328,4516.7,4516.6,0.001]
[1759953316177,15.40337328,4516.7,4516.6,0.001]
[1759953316962,13.18936748,4516.7,4516.1,1e-08]
[1759953317179,2.84785091,4516.2,4516.1,1e-08]
[1759953317344,9.11185091,4516.2,4516.1,1e-08]
[1759953317538,9.54825091,4516.2,4516.1,1e-08]
[1759953318157,9.75459072,4516.2,4516.1,1e-08]
[1759953318476,13.34679408,4516.2,4516.1,1e-08]
[1759953319466,13.45655367,4516.2,4516.1,1e-08]
[1759953320061,13.34679408,4516.2,4516.1,1e-08]
[1759953321143,15.65579408,4516.2,4516.1,1e-08]
[1759953322378,12.87646777,4516.2,4516.1,1e-08]
[1759953322679,15.17946777,4516.2,4516.1,1e-08]
[1759953323477,15.17946777,4516.2,4516.1,0.00100001]
[1759953324449,14.97312796,4516.2,4516.1,0.00100001]
[1759953325258,15.17905122,4516.2,4516.1,0.00100001]
[1759953328463,12.87505122,4516.2,4516.1,0.00100001]
[1759953328663,15.17810135,4516.2,4516.1,0.00100001]
[1759953329659,22.31810135,4516.2,4516.1,0.00100001]
[1759953329860,22.79275542,4516.2,4516.1,0.00100001]
[1759953333962,14.22175542,4516.2,4516.1,0.00100001]
[1759953334204,22.79175542,4516.2,4516.1,0.00100001]
[1759953336785,22.79232781,4516.2,4516.1,0.00100001]
[1759953337311,0.6336,4514.8,4514.2,2.18023187]
[1759953337472,6.266,4514.7,4514.2,2.18023187]
[1759953337810,6.7138,4514.7,4513.5,4.13653648]
[1759953337994,6.7138,4514.7,4514.2,2.2151894]
[1759953338300,0.4478,4514.6,4514.1,2.22526523]
[1759953339094,0.6336,4514.8,4514.1,0.64616425]
[1759953339278,6.266,4514.7,4514.3,2.21514467]
[1759953339478,2.987,4514.7,4514.3,2.21514467]
[1759953339694,3.4348,4514.7,4514.1,0.01]
[1759953339903,3.4348,4514.7,4514.2,2.21523159]
[1759953340204,0.4478,4514.6,4514.2,2.21523159]
[1759953340391,0.4478,4514.6,4514.2,2.62985475]
[1759953340797,0.4478,4514.6,4514.3,2.21518231]
[1759953340998,0.6336,4515.1,4514.2,0.43677547]
[1759953341193,0.47715844,4515.5,4515.1,0.001]
[1759953341504,1.15735844,4516.1,4515.1,2.21576162]
[1759953341706,1.15735844,4516.1,4515.1,0.001]
[1759953341707,0.6336,4515.6,4515.1,0.001]
[1759953341908,2.21464322,4515.4,4515.1,0.001]
[1759953342120,2.84834131,4515.2,4515.1,0.001]
[1759953342319,8.73134131,4515.2,4515.1,0.001]
[1759953342604,9.17764131,4515.2,4515.1,0.001]
[1759953346289,9.38508284,4515.2,4515.1,0.001]
[1759953349309,0.6336,4515.7,4515.1,0.001]
[1759953349514,0.6336,4515.5,4515.1,0.001]
[1759953350026,0.4463,4515.4,4515.1,0.001]
[1759953350424,0.4463,4515.3,4515.1,0.001]
[1759953350794,0.4463,4515.2,4515.1,0.001]
[1759953356397,0.6957,4516.1,4515.1,2.21577366]
[1759953356662,0.6957,4516.1,4515.2,2.21470351]
[1759953356663,1.33336771,4516.0,4515.2,2.21470351]
[1759953356803,2.88507208,4515.9,4515.2,2.21470351]
[1759953356999,0.20736771,4515.8,4515.1,0.2225927]
[1759953357199,0.1104,4515.2,4515.1,2.21578508]
[1759953357431,0.1104,4515.2,4515.1,2.23793298]
[1759953357737,0.1104,4515.2,4515.1,2.64408508]
[1759953358651,0.1104,4515.2,4515.1,2.66623298]
[1759953359009,0.1104,4515.2,4515.1,2.64408508]
[1759953359319,0.1104,4515.2,4515.1,3.15212736]
[1759953360546,0.1104,4515.2,4515.1,2.70167946]
[1759953360838,0.1104,4515.2,4515.1,0.001]
[1759953363448,0.1104,4515.2,4515.1,2.21579037]
[1759953363810,0.1104,4515.2,4515.1,0.001]
[1759953364042,0.1104,4515.2,4515.1,2.64409037]
[1759953364440,0.1104,4515.2,4515.1,2.21579037]
[1759953364729,0.1104,4515.2,4515.1,2.43736941]
[1759953365312,0.1104,4515.2,4515.1,0.001]
[1759953366829,0.1104,4515.2,4515.1,2.21579037]
[1759953368741,0.1104,4515.2,4515.1,0.001]
[1759953369350,0.1104,4515.2,4515.1,2.21579037]
[1759953370215,0.1104,4515.2,4515.1,2.23793827]
[1759953370421,0.1104,4515.8,4515.3,4.13469226]
[1759953370622,0.1104,4515.8,4515.4,6.71544643]
[1759953370959,0.1104,4515.8,4515.7,2.21449609]
[1759953371454,0.1104,4515.8,4515.7,2.66494105]
[1759953371752,0.1104,4515.8,4515.7,3.44256875]
[1759953372536,0.002,4516.2,4516.1,2.21429994]
[1759953372749,0.002,4516.2,4516.1,10.53204293]
[1759953372953,0.002,4516.2,4516.1,10.93819994]
[1759953373257,0.002,4516.2,4516.1,1.92]
[1759953373467,0.4653,4516.2,4515.1,0.001]
[1759953373630,0.4653,4516.2,4515.3,1.92]
[1759953373832,0.4653,4516.2,4515.4,2.21462633]
[1759953374129,0.002,4516.2,4515.4,1.2809412]
[1759953374441,0.002,4516.2,4515.5,0.4283]
[1759953374658,0.002,4516.2,4516.1,2.21429994]
[1759953376450,0.002,4516.2,4516.1,2.75219994]
[1759953376656,0.002,4516.2,4516.1,2.32389994]
[1759953376852,0.002,4516.2,4516.1,2.21429994]
[1759953377367,0.002,4516.2,4515.9,7.01638694]
[1759953377536,0.002,4516.2,4515.9,4.802]
[1759953377960,0.002,4516.2,4516.1,2.21429994]
[1759953379156,0.002,4516.2,4515.9,4.802]
[1759953379370,0.002,4516.2,4516.1,2.21429994]
[1759953379873,0.4653,4516.2,4515.0,0.4283]
[1759953380072,2.21429994,4516.1,4515.3,1.92]
[1759953380256,0.4653,4516.2,4515.3,1.92]
[1759953380446,2.6795637,4516.2,4515.3,1.92]
[1759953380765,0.4653,4516.2,4515.3,1.92]